Workbook

Sheet Startseite
J4: Startseite
B5: Firmenwagenrechner - Arbeitgeberkosten bei Privatnutzung
D9: Tabellenblätter | M9: Tabellenblatt | N9: 1
G10: Info
G11: =INDEX(Parameter_Intern!C5:D8,Startseite!N9,2) -> Hier geben Sie die Daten für den Firmenwagenrechner ein | M11: =+N9/2 -> 0.5 | N11: =+ROUND(N9/2,0) -> 1
M12: =IF(M11=N11,1,2) -> 2
D17: ="Bei einem Klick auf "&H17&" kommen Sie direkt zum entsprechenden Arbeitsblatt" -> Bei einem Klick auf Eingaben kommen Sie direkt zum entsprechenden Arbeitsblatt | H17: =+HYPERLINK(VLOOKUP($N$9,Parameter_Intern!$B$5:$E$30,4,FALSE),VLOOKUP($N$9,Parameter_Intern!$B$5:$E$30,2,FALSE)) -> Eingaben
B39: © 2025 by mediaforwork - ein Unternehmensbereich der Verlag für die Deutsche Wirtschaft AG
B40: Die Vervielfältigung, Verbreitung oder Veräußerung der Daten oder Texte ist unzulässig und
B41: ausdrücklich nur mit Genehmigung des Verlags gestattet.

Sheet Eingaben
J2: Eingaben
B3: Firmenwagenrechner - Arbeitgeberkosten bei Privatnutzung - Eingaben -
C5: Eingaben zum Fahrzeug
P6: 2 | Q6: 1 | S6: 2 | T6: Wahl
C7: Fahrzeug | P7: =+IF(H42="Alte Bundesländer","West","Ost") -> West | Q7: Privat | R7: Knapp | S7: Gesetzlich
P8: Krankenversicherung | Q8: =IF($P$6<>$Q$6,"",IF($P$7="West",Rechengrößen!E11,Rechengrößen!F11)) ->  | R8: =IF($P$6<>$R$6,"",IF($P$7="West",Rechengrößen!E15,Rechengrößen!F15)) ->  | S8: =IF($P$6<>$S$6,"",IF($P$7="West",Rechengrößen!E11,Rechengrößen!F11)) -> 66150 | T8: =SUM(Q8:S8) -> 66150
C9: Ansatz Bruttolistenverkaufpreis | P9: Pflegeversicherung | Q9: =IF($P$6<>$Q$6,"",IF($P$7="West",Rechengrößen!E12,Rechengrößen!F12)) ->  | R9: =IF($P$6<>$R$6,"",IF($P$7="West",Rechengrößen!E15,Rechengrößen!F15)) ->  | S9: =IF($P$6<>$S$6,"",IF($P$7="West",Rechengrößen!E12,Rechengrößen!F12)) -> 66150 | T9: =SUM(Q9:S9) -> 66150
P10: Rentenversicherung | Q10: =IF($P$6<>$Q$6,"",IF($P$7="West",Rechengrößen!E13,Rechengrößen!F13)) ->  | R10: =IF($P$6<>$R$6,"",IF($P$7="West",Rechengrößen!E15,Rechengrößen!F15)) ->  | S10: =++IF($P$6<>$S$6,"",IF($P$7="West",Rechengrößen!E13,Rechengrößen!F13)) -> 96600 | T10: =SUM(Q10:S10) -> 96600
C11: Bruttolistenpreis inkl. USt | P11: Arbeitslosenversicherung | Q11: =IF($P$6<>$Q$6,"",IF($P$7="West",Rechengrößen!E14,Rechengrößen!F14)) ->  | R11: =IF($P$6<>$R$6,"",IF($P$7="West",Rechengrößen!E14,Rechengrößen!F14)) ->  | S11: =+IF($P$6<>$S$6,"",IF($P$7="West",Rechengrößen!E14,Rechengrößen!F14)) -> 96600 | T11: =SUM(Q11:S11) -> 96600
C12: Sonderausstattung | P12: Knappschaft | Q12: =IF($P$6<>$Q$6,"",IF($P$7="West",Rechengrößen!E15,Rechengrößen!F15)) ->  | T12: =SUM(Q12:S12) -> 0
C13: Korrigierter Bruttolistenpreis inkl. USt | H13: =+H11+H12 -> 0
C15: Monatliche Leasingrate | P15: =+P6 -> 2 | Q15: 1 | S15: 2 | T15: Wahl
P16: =+P7 -> West | Q16: Privat | R16: Knapp | S16: Gesetzlich
C17: Laufleistung / Jahr (km) | P17: Krankenversicherung | R17: =+IF($P$15<>R$15,"",Rechengrößen!E26) ->  | S17: =+IF(P15<>S15,"",Rechengrößen!E26) -> 14.60% | T17: =SUM(Q17:S17) -> 14.60%
C18: Verbrauch / 100 km | P18: Krankenversicherung Sonderbeitrag | R18: =+IF(R17="","",Rechengrößen!E27) ->  | S18: =+IF(S17="","",Rechengrößen!E20) -> 2.50% | T18: 2.50%
C19: Preis je Liter Treibstoff | P19: Pflegeversicherung | R19: =+IF(R17="","",Rechengrößen!E19) ->  | S19: =+IF(S17="","",Rechengrößen!E19) -> 3.60% | T19: 3.60%
P20: Zuschlag Kinderlose | R20: =+IF(R17="","",Rechengrößen!E20) ->  | S20: =+IF(S17="","",Rechengrößen!E20) -> 2.50% | T20: 2.50%
C21: Kfz-Steuer | P21: Rentenversicherung | Q21: =+IF($P$15<>Q$15,"",IF(Q7="","",Rechengrößen!E23)) ->  | R21: =+IF(R17="","",Rechengrößen!E24) ->  | S21: =+IF(S17="","",Rechengrößen!E23) -> 18.60% | T21: 18.60%
C22: Kfz-Versicherung | P22: Arbeitslosenversicherung | Q22: =+IF(Q21="","",Rechengrößen!E22) ->  | R22: =+IF(R17="","",Rechengrößen!E22) ->  | S22: =+IF(S17="","",Rechengrößen!E22) -> 2.60% | T22: 2.60%
C23: Inspektion, Reparaturen p.a
C24: Verschleiß (Reifen etc.) | P24: TRUE | Q24: =+IF(P24=FALSE(),0,1) -> 1 | R24: Steuerliche Förderung
C25: Sonstige Kosten / Jahr
P26: TRUE | Q26: =+IF(P26=FALSE(),0,1) -> 1 | R26: Doppelter Haushalt
C27: Eingaben zur Ermittlung des geldwerten Vorteils
C29: =IF(Q26=0,"Entfernung Wohnung / Arbeit (km)","Entfernung dopp. Haush. / Arbeit (km)") -> Entfernung dopp. Haush. / Arbeit (km) | P29: Normaler PKW - 100% | Q29: 100%
P30: E-PKW - 50% | Q30: 50%
P31: E-PKW - 25% | Q31: 25% | R31: =IF(ISERROR(VLOOKUP(H9,P29:Q31,2,FALSE)),1,VLOOKUP(H9,P29:Q31,2,FALSE)) -> 100%
C32: =+IF($Q$26=0,"","Anzahl Heimfahrten pro Jahr") -> Anzahl Heimfahrten pro Jahr
C33: =+IF($Q$26=0,"","Entfernung Arbeit / Heimat") -> Entfernung Arbeit / Heimat | P33: Steuerliche Förderung | Q33: =+IF(OR(H9=P30,H9=P31),1,0) -> 0
C36: Eingaben zur Berechnugn der Sozialversicherungsbeträge
C38: Bruttoverdienst bisher
C40: Jahr der Berechnung (für Berechnung der Sozialversicherungsbeiträge)
C42: Rechengrößen | H42: Alte Bundesländer
Q46: =+IF($I$40>T8,T8,I40) -> 0 | R46: =+IF($I$38>T8,T8,I38) -> 0
H47: =+IF(AND(OR($I$48="",$I$49=""),$P$6=1),"Eingabe AG-Anteil","") ->  | I47: =IF(AND(OR($I$48="",$I$49=""),$P$6=1),"ââââ","") ->  | Q47: =+Q46 -> 0 | R47: =+R46 -> 0
C48: =+IF(P6=1,"AG-Anteil Krankenversicherung / Jahresbeitrag ->","") -> 
C49: =+IF(P6=1,"AG-Anteil Pflegeversicherung /Jahresbeitrag ->","") -> 
B52: << Startseite | E52: Beispiel | F52: Hilfe
B54: © 2025 by mediaforwork - ein Unternehmensbereich der Verlag für die Deutsche Wirtschaft AG
B55: Die Vervielfältigung, Verbreitung oder Veräußerung der Daten oder Texte ist unzulässig und
B56: ausdrücklich nur mit Genehmigung des Verlags gestattet.
S58: 1

Sheet Berechnung
P2: Berechnung
C3: Firmenwagenrechner - Arbeitgeberkosten bei Privatnutzung - Berechnung -
C6: Angaben zum Fahrzeug | K6: Programmparameter
T7: =+Eingaben!P6 -> 2 | U7: 1 | W7: 2 | X7: Wahl
C8: =+IF(Eingaben!H9="Fahrzeug:","","Fahrzeug - "&Eingaben!H9) -> Fahrzeug - | G8: =+IF(Eingaben!H7="","",Eingaben!H7) ->  | K8: Pauschalversteuerung mit | O8: 1.00% | T8: =+Eingaben!P7 -> West | U8: Privat | V8: Knapp | W8: Gesetzlich | AA8: 1.00% | AB8: =+ROUND(AA8/2,6) -> 0.500%
T9: Krankenversicherung | U9: =IF($T$7<>$U$7,"",IF($T$8="West",Rechengrößen!E11,Rechengrößen!F11)) ->  | V9: =IF($T$7<>$V$7,"",IF($T$8="West",Rechengrößen!E15,Rechengrößen!F15)) ->  | W9: =IF($T$7<>$W$7,"",IF($T$8="West",Rechengrößen!E11,Rechengrößen!F11)) -> 66150 | X9: =SUM(U9:W9) -> 66150
C10: Bruttolistenpreis inkl. USt | G10: =+Eingaben!H11 -> 0 | K10: Ansatz für Fahrten Wohnung/Arbeit | O10: 0.030% | T10: Pflegeversicherung | U10: =IF($T$7<>$U$7,"",IF($T$8="West",Rechengrößen!E12,Rechengrößen!F12)) ->  | V10: =IF($T$7<>$V$7,"",IF($T$8="West",Rechengrößen!E15,Rechengrößen!F15)) ->  | W10: =IF($T$7<>$W$7,"",IF($T$8="West",Rechengrößen!E12,Rechengrößen!F12)) -> 66150 | X10: =SUM(U10:W10) -> 66150
C11: Sonderausstattung | G11: =+Eingaben!H12 -> 0 | K11: Ansatz für Familienheimfahrten | O11: 0.002% | T11: Rentenversicherung | U11: =IF($T$7<>$U$7,"",IF($T$8="West",Rechengrößen!E13,Rechengrößen!F13)) ->  | V11: =IF($T$7<>$V$7,"",IF($T$8="West",Rechengrößen!E15,Rechengrößen!F15)) ->  | W11: =++IF($T$7<>$W$7,"",IF($T$8="West",Rechengrößen!E13,Rechengrößen!F13)) -> 96600 | X11: =SUM(U11:W11) -> 96600 | AA11: 0.03% | AB11: =+ROUND(AA11/2,6) -> 0.015%
C12: Korrigierter Bruttolistenpreis inkl. USt | G12: =+G11+G10 -> 0 | K12: Kilometerpauschale 1 - bis 20 km | O12: 0.30 | T12: Arbeitslosenversicherung | U12: =IF($T$7<>$U$7,"",IF($T$8="West",Rechengrößen!E14,Rechengrößen!F14)) ->  | V12: =IF($T$7<>$V$7,"",IF($T$8="West",Rechengrößen!E14,Rechengrößen!F14)) ->  | W12: =+IF($T$7<>$W$7,"",IF($T$8="West",Rechengrößen!E14,Rechengrößen!F14)) -> 96600 | X12: =SUM(U12:W12) -> 96600 | AA12: 0.002% | AB12: =+ROUND(AA12/2,6) -> 0.0010%
K13: Kilometerpauschale 2 - über 20 km | O13: 0.38 | T13: Knappschaft | U13: =IF($T$7<>$U$7,"",IF($T$8="West",Rechengrößen!E15,Rechengrößen!F15)) ->  | X13: =SUM(U13:W13) -> 0 | AA13: 0.30 | AB13: =+AA13/2 -> 0.15
C14: Ansatz Bruttolistenverkaufspreis | G14: =ROUND(G12,-2)*U29 -> 0
K15: Ermittlung der Fahrzeugkosten / Jahr
C16: Monatliche Leasingrate | G16: =+Eingaben!H15 -> 0 | T16: =+T7 -> 2 | U16: 1 | W16: 2 | X16: Wahl
C17: Laufleistung / Jahr (km) | G17: =+Eingaben!H17 -> 0 | K17: Leasingrate | O17: =IF(ISERROR(G16*12),"",G16*12) -> 0 | T17: =+Eingaben!P16 -> West | U17: Privat | V17: Knapp | W17: Gesetzlich
C18: Verbrauch / 100 km | G18: =+Eingaben!H18 -> 0 | K18: Treibstoff | O18: =IF(ISERROR(ROUND(G17/100*G18*G19,0)),"",ROUND(G17/100*G18*G19,0)) -> 0 | T18: Krankenversicherung | V18: =+IF($T$16<>V$16,"",Rechengrößen!E26) ->  | W18: =+IF(T16<>W16,"",Rechengrößen!E26) -> 14.60% | X18: =SUM(U18:W18) -> 14.60%
C19: Preis je Liter Treibstoff | G19: =+Eingaben!H19 -> 0 | K19: Kfz-Steuer | O19: =+G21 -> 0 | T19: Krankenversicherung Zusatzbeitrag | V19: =+IF(V18="","",Rechengrößen!E27) ->  | W19: =+IF(W18="","",Rechengrößen!E20) -> 2.50% | X19: 2.50%
K20: Kfz-Versicherung | O20: =+G22 -> 0 | T20: Pflegeversicherung | V20: =+IF(V18="","",Rechengrößen!E19) ->  | W20: =+IF(W18="","",Rechengrößen!E19) -> 3.60% | X20: 3.60%
C21: Kfz-Steuer | G21: =+Eingaben!H21 -> 0 | K21: Inspektion, Reparaturen p.a | O21: =+G23 -> 0 | T21: Zuschlag Kinderlose | V21: =+IF(V18="","",Rechengrößen!E20) ->  | W21: =+IF(W18="","",Rechengrößen!E20) -> 2.50% | X21: 2.50%
C22: Kfz-Versicherung | G22: =+Eingaben!H22 -> 0 | K22: Verschleiß (Reifen etc.) | O22: =+G24 -> 0 | T22: Rentenversicherung | U22: =+IF($T$16<>U$16,"",IF(U8="","",Rechengrößen!E23)) ->  | V22: =+IF(V18="","",Rechengrößen!E24) ->  | W22: =+IF(W18="","",Rechengrößen!E23) -> 18.60% | X22: 18.60%
C23: Inspektion, Reparaturen p.a | G23: =+Eingaben!H23 -> 0 | K23: Sonstige Kosten / Jahr | O23: =+G25 -> 0 | T23: Arbeitslosenversicherung | U23: =+IF(U22="","",Rechengrößen!E22) ->  | V23: =+IF(V18="","",Rechengrößen!E22) ->  | W23: =+IF(W18="","",Rechengrößen!E22) -> 2.60% | X23: 2.60%
C24: Verschleiß (Reifen etc.) | G24: =+Eingaben!H24 -> 0
C25: Sonstige Kosten / Jahr | G25: =+Eingaben!H25 -> 0 | K25: Summe relevante Kfz-Kosten | O25: =IF(ISERROR(SUM(O17:O23)),"",SUM(O17:O23)) -> 0 | T25: =+Eingaben!P24 -> TRUE | U25: =+Eingaben!Q33 -> 0 | V25: Steuerliche Förderung
C27: Angaben zur Ermittlung des geldwerten Vorteils | K27: Ermittlung des geldwerten Vorteils | T27: =+Eingaben!P26 -> TRUE | U27: =+Eingaben!Q26 -> 1 | V27: Doppelter Haushalt
C29: =IF(U27=0,"Entfernung Wohnung / Arbeit (km)","Entfernung dopp. Haush. / Arbeit (km)") -> Entfernung dopp. Haush. / Arbeit (km) | G29: =+Eingaben!H29 -> 0 | K29: Geldwerter Vorteil | O29: =IF(ISERROR(ROUND(G14*O8*12,0)),"",ROUND(G14*O8*12,0)) -> 0 | T29: Ansatz Bruttolistenverkaufspreis | U29: =+Eingaben!R31 -> 100%
K30: Entfernungspauschale | O30: =ROUND(G29*O10*G14*12,0) -> 0
C31: =+IF(U27=1,"Doppelten Haushalt berücksichtigen.","Kein doppelter Haushalt") -> Doppelten Haushalt berücksichtigen. | K31: =+IF(U27=0,"","Doppelte Haushaltsführung") -> Doppelte Haushaltsführung | O31: =IF(U27=0,"",ROUND(G33*G34*O11*G14,0)) -> 0 | T31: Berechnung Entfernungspauschale | U31: =+IF(G29>20,20,G29) -> 0 | V31: =+O12 -> 0.30
U32: =+IF(G29>20,G29-20,0) -> 0 | V32: =+O13 -> 0.38
C33: =+IF($U$27=0,"","Anzahl Heimfahrten pro Jahr") -> Anzahl Heimfahrten pro Jahr | G33: =+Eingaben!H32 -> 0 | K33: Geldwerter Vorteil - Erhöhung Brutto | O33: =IF(ISERROR(SUM(O29:O31)),"",SUM(O29:O31)) -> 0
C34: =+IF($U$27=0,"","Entfernung Arbeit / Heimat") -> Entfernung Arbeit / Heimat | G34: =+Eingaben!H33 -> 0
C36: Ermittlung der Sozialversicherungsbeträge | K36: Ermittlung der Mehrkosten für Sozialversicherung
C38: Bruttoverdienst bisher | H38: =+Eingaben!I38 -> 0 | K38: =+IF(AA7=1,"AG-Anteil Krankenvers.->","AG-Anteil Krankenvers.") -> AG-Anteil Krankenvers. | M38: =IF(E45="","",E45) ->  | N38: =+G45 -> 8.550% | O38: =IF(ISERROR(IF($T$7=1,M38,ROUND($V$44*$G$45,0))),"",IF($T$7=1,M38,ROUND($V$44*$G$45,0))) -> 0
C39: + | D39: Geldwerter Vorteil | H39: =+O33 -> 0 | K39: =+IF(AA7=1,"AG-Anteil Pflegevers.->","AG-Anteil Pflegevers.") -> AG-Anteil Pflegevers. | M39: =IF(E46="","",E46) ->  | N39: =+G46 -> 1.800% | O39: =IF(ISERROR(IF($T$7=1,M39,ROUND($V$45*$G$46,0))),"",IF($T$7=1,M39,ROUND($V$45*$G$46,0))) -> 0
C40: = | D40: Neu zu versteuerndes Bruttogehalt | H40: =IF(ISERROR(SUM(H38:H39)),"",SUM(H38:H39)) -> 0 | L40: =IF(AND(OR(L38<>"",L39<>""),AA7=2),"áááá","") ->  | N40: =+IF(AND(OR(L38<>"",L39<>""),AA7=2),"Werte löschen","") -> 
K41: AG-Anteil Rentenv. | N41: =IF(ISERROR(ROUND($X$22/2,4)),"",ROUND($X$22/2,4)) -> 9.300% | O41: =IF(ISERROR(ROUND($V$47*$G$48,0)),"",ROUND($V$47*$G$48,0)) -> 0
K42: AG-Anteil Arbeitsl.-Vers. | N42: =IF(ISERROR(ROUND($X$23/2,3)),"",ROUND($X$23/2,3)) -> 1.300% | O42: =IF(ISERROR(ROUND($V$48*$G$49,0)),"",ROUND($V$48*$G$49,0)) -> 0
C43: =+IF(T16=1,"Der Mitarbeiter ist privat versichert","Der Mitarbeiter ist gesetzlich versichert") -> Der Mitarbeiter ist gesetzlich versichert
E44: =IF(AND(OR($E$45="",$E$46=""),$T$7=1),"ââââ","") ->  | G44: =+IF(AND(OR($E$45="",$E$46=""),$T$7=1),"Eingabe AG-Anteil","") ->  | U44: =+IF($H$40>X9,X9,H40) -> 0 | V44: =+IF($H$38>X9,X9,H38) -> 0
D45: =+IF(T7=1,"AG-Anteil Krankenvers.->","AG-Anteil Krankenvers.") -> AG-Anteil Krankenvers. | E45: =+IF($T$16=1,Eingaben!I48,"") ->  | G45: =IF(ISERROR(IF($T$7=1,"",ROUND(($X$18+$X$19)/2,4))),"",IF($T$7=1,"",ROUND(($X$18+$X$19)/2,4))) -> 8.550% | H45: =+IF($T$7=1,E45,ROUND($U$44*$G$45,0)) -> 0 | K45: ="AG-Anteil SozVers. bei "&TEXT(H38,"#.00")&" Euro Gehalt" -> AG-Anteil SozVers. bei 00 Euro Gehalt | O45: =IF(ISERROR(SUM(O38,O39,O41,O42)),"",SUM(O38,O39,O41,O42)) -> 0 | U45: =+U44 -> 0 | V45: =+V44 -> 0
D46: =+IF(T7=1,"AG-Anteil Pflegevers.->","AG-Anteil Pflegevers.") -> AG-Anteil Pflegevers. | E46: =+IF($T$16=1,Eingaben!I49,"") ->  | G46: =IF(ISERROR(IF($T$7=1,"",ROUND($X$20/2,6))),"",IF($T$7=1,"",ROUND($X$20/2,6))) -> 1.800% | H46: =+IF($T$7=1,$E$46,ROUND($U$45*$G$46,0)) -> 0 | K46: ="AG-Anteil SozVers. bei "&TEXT(H40,"#.00")&" Euro Gehalt" -> AG-Anteil SozVers. bei 00 Euro Gehalt | O46: =IF(ISERROR(SUM(H45:H49)),"",SUM(H45:H49)) -> 0
E47: =IF(AND(OR(E45<>"",E46<>""),T7=2),"áááá","") ->  | G47: =+IF(AND(OR(E45<>"",E46<>""),T7=2),"Werte löschen","") ->  | U47: =+IF(H40>X11,X11,H40) -> 0 | V47: =+IF(H38>X11,X11,H38) -> 0
D48: AG-Anteil Rentenv. | G48: =IF(ISERROR(ROUND($X$22/2,4)),"",ROUND($X$22/2,4)) -> 9.300% | H48: =ROUND($U$47*$G$48,0) -> 0 | U48: =+IF(H40>X12,X12,H40) -> 0 | V48: =+IF(H38>X12,X12,H38) -> 0
D49: AG-Anteil Arbeitsl.-Vers. | G49: =IF(ISERROR(ROUND($X$23/2,4)),"",ROUND($X$23/2,4)) -> 1.300% | H49: =ROUND($U$48*$G$49,0) -> 0 | K49: =IF(O49=0,"Keine Veränderung","Mehrkosten Sozialversicherung") -> Keine Veränderung | O49: =IF(ISERROR(O46-O45),"",O46-O45) -> 0
C52: Ermittlung der Gesamtkosten für die Bereitstellung eines Dienstwagens
C55: Jährliche Kosten für die Leasingraten | H55: =+O17 -> 0 | L55: Leasing | M55: =+H55 -> 0
L56: Kfz-Kosten | M56: =+H57 -> 0
C57: Laufende Kfz-Kosten | H57: =IF(ISERROR(O25-H55),"",O25-H55) -> 0 | L57: Sozialvers. | M57: =IF(+H59>0,+H59,"") -> 
C59: Mehrkosten für Sozialversicherung | H59: =+O49 -> 0
C61: Gesamtkosten | H61: =IF(ISERROR(SUM(H55,H57,H59)),"",SUM(H55,H57,H59)) -> 0
E65: << Startseite | H65: Hilfe? | L65: Beispiel
B67: © 2025 by mediaforwork - ein Unternehmensbereich der Verlag für die Deutsche Wirtschaft AG
B68: Die Vervielfältigung, Verbreitung oder Veräußerung der Daten oder Texte ist unzulässig und
B69: ausdrücklich nur mit Genehmigung des Verlags gestattet.
W72: 1

Sheet Beispiel
B3: Firmenwagenrechner - Arbeitgeberkosten bei Privatnutzung - Beispiel -
C5: Eingaben zum Fahrzeug
P6: 2 | Q6: 1 | S6: 2 | T6: Wahl
C7: Fahrzeug | H7: Audi A4 | P7: =+IF(H40="Alte Bundesländer","West","Ost") -> Ost | Q7: Privat | R7: Knapp | S7: Gesetzlich
P8: Krankenversicherung | Q8: =IF($P$6<>$Q$6,"",IF($P$7="West",Rechengrößen!E11,Rechengrößen!F11)) ->  | R8: =IF($P$6<>$R$6,"",IF($P$7="West",Rechengrößen!E15,Rechengrößen!F15)) ->  | S8: =IF($P$6<>$S$6,"",IF($P$7="West",Rechengrößen!E11,Rechengrößen!F11)) -> 66150 | T8: =SUM(Q8:S8) -> 66150
C9: Ansatz Bruttolistenverkaufpreis | H9: E-PKW - 25% | P9: Pflegeversicherung | Q9: =IF($P$6<>$Q$6,"",IF($P$7="West",Rechengrößen!E12,Rechengrößen!F12)) ->  | R9: =IF($P$6<>$R$6,"",IF($P$7="West",Rechengrößen!E15,Rechengrößen!F15)) ->  | S9: =IF($P$6<>$S$6,"",IF($P$7="West",Rechengrößen!E12,Rechengrößen!F12)) -> 66150 | T9: =SUM(Q9:S9) -> 66150
P10: Rentenversicherung | Q10: =IF($P$6<>$Q$6,"",IF($P$7="West",Rechengrößen!E13,Rechengrößen!F13)) ->  | R10: =IF($P$6<>$R$6,"",IF($P$7="West",Rechengrößen!E15,Rechengrößen!F15)) ->  | S10: =++IF($P$6<>$S$6,"",IF($P$7="West",Rechengrößen!E13,Rechengrößen!F13)) -> 96600 | T10: =SUM(Q10:S10) -> 96600
C11: Bruttolistenpreis inkl. USt | H11: 37,500 € | P11: Arbeitslosenversicherung | Q11: =IF($P$6<>$Q$6,"",IF($P$7="West",Rechengrößen!E14,Rechengrößen!F14)) ->  | R11: =IF($P$6<>$R$6,"",IF($P$7="West",Rechengrößen!E14,Rechengrößen!F14)) ->  | S11: =+IF($P$6<>$S$6,"",IF($P$7="West",Rechengrößen!E14,Rechengrößen!F14)) -> 96600 | T11: =SUM(Q11:S11) -> 96600
C12: Sonderausstattung | H12: 2,546 € | P12: Knappschaft | Q12: =IF($P$6<>$Q$6,"",IF($P$7="West",Rechengrößen!E15,Rechengrößen!F15)) ->  | T12: =SUM(Q12:S12) -> 0
C13: Korrigierter Bruttolistenpreis inkl. USt | H13: =+H11+H12 -> 40,046
C15: Monatliche Leasingrate | H15: 750 € | P15: =+P6 -> 2 | Q15: 1 | S15: 2 | T15: Wahl
P16: =+P7 -> Ost | Q16: Privat | R16: Knapp | S16: Gesetzlich
C17: Laufleistung / Jahr (km) | H17: 30,000 km | P17: Krankenversicherung | R17: =+IF($P$15<>R$15,"",Rechengrößen!E26) ->  | S17: =+IF(P15<>S15,"",Rechengrößen!E26) -> 14.60% | T17: =SUM(Q17:S17) -> 14.60%
C18: Verbrauch / 100 km | H18: 9.20 L/km | P18: Krankenversicherung Sonderbeitrag | R18: =+IF(R17="","",Rechengrößen!E27) ->  | S18: =+IF(S17="","",Rechengrößen!E20) -> 2.50% | T18: 2.50%
C19: Preis je Liter Treibstoff | H19: 1.40 €/L | P19: Pflegeversicherung | R19: =+IF(R17="","",Rechengrößen!E19) ->  | S19: =+IF(S17="","",Rechengrößen!E19) -> 3.60% | T19: 3.60%
P20: Zuschlag Kinderlose | R20: =+IF(R17="","",Rechengrößen!E20) ->  | S20: =+IF(S17="","",Rechengrößen!E20) -> 2.50% | T20: 2.50%
C21: Kfz-Steuer | H21: 750 € | P21: Rentenversicherung | Q21: =+IF($P$15<>Q$15,"",IF(Q7="","",Rechengrößen!E23)) ->  | R21: =+IF(R17="","",Rechengrößen!E24) ->  | S21: =+IF(S17="","",Rechengrößen!E23) -> 18.60% | T21: 18.60%
C22: Kfz-Versicherung | H22: 750 € | P22: Arbeitslosenversicherung | Q22: =+IF(Q21="","",Rechengrößen!E22) ->  | R22: =+IF(R17="","",Rechengrößen!E22) ->  | S22: =+IF(S17="","",Rechengrößen!E22) -> 2.60% | T22: 2.60%
C23: Inspektion, Reparaturen p.a | H23: 1,500 €
C24: Verschleiß (Reifen etc.) | H24: 1,500 € | P24: TRUE
C25: Sonstige Kosten / Jahr | H25: 2,000 €
P26: TRUE | Q26: =+IF(P26=FALSE(),0,1) -> 1
C27: Eingaben zur Ermittlung des geldwerten Vorteils
C29: =IF(Q26=0,"Entfernung Wohnung / Arbeit (km)","Entfernung dopp. Haush. / Arbeit (km)") -> Entfernung dopp. Haush. / Arbeit (km) | H29: 30
C32: =+IF($Q$26=0,"","Anzahl Heimfahrten pro Jahr") -> Anzahl Heimfahrten pro Jahr | H32: 20
C33: =+IF($Q$26=0,"","Entfernung Arbeit / Heimat") -> Entfernung Arbeit / Heimat | H33: 150
C36: Eingaben zur Berechnugn der Sozialversicherungsbeträge
C38: Bruttoverdienst bisher | I38: 50,000
C40: Jahr der Berechnung (für Berechnung der Sozialversicherungsbeiträge) | I40: 2025
C42: Rechengrößen | H42: Alte Bundesländer
Q46: =+IF($I$38>T8,T8,I38) -> 50000 | R46: =+IF($I$36>T8,T8,I36) -> 0
H47: =+IF(AND(OR($I$48="",$I$49=""),$P$6=1),"Eingabe AG-Anteil","") ->  | I47: =IF(AND(OR($I$48="",$I$49=""),$P$6=1),"ââââ","") ->  | Q47: =+Q46 -> 50000 | R47: =+R46 -> 0
C48: =+IF(P6=1,"AG-Anteil Krankenversicherung / Jahresbeitrag ->","") -> 
B52: << Startseite | E52: Hilfe?
B55: © 2025 by mediaforwork - ein Unternehmensbereich der Verlag für die Deutsche Wirtschaft AG
B56: Die Vervielfältigung, Verbreitung oder Veräußerung der Daten oder Texte ist unzulässig und
B57: ausdrücklich nur mit Genehmigung des Verlags gestattet.
S60: 1

Sheet Hilfe
F2: Hilfe
B3: Firmenwagenrechner - Arbeitgeberkosten bei Privatnutzung - Hinweise -
D5: Allgemeine Hinweise
D9: Hinweise zum Firmenwagenrechner
D15: Startseite
B17: © 2025 by mediaforwork - ein Unternehmensbereich der Verlag für die Deutsche Wirtschaft AG
B18: Die Vervielfältigung, Verbreitung oder Veräußerung der Daten oder Texte ist unzulässig und
B19: ausdrücklich nur mit Genehmigung des Verlags gestattet.

Sheet Rechengrößen (hidden)
B3: ="Rechengrößen "&IF($N$5=P5,$O9,$Q9) -> Rechengrößen 2025
D5: Sozialversicherung | N5: =Eingaben!I40+0 -> 0 | P5: =+IF(AND(ISNUMBER(N5),N5=2024),N5-0,2024) -> 2024 | R5: =+IF(AND(ISNUMBER(N5),N5=2025),N5,2025) -> 2025
D7: Beitragsbemessungsgrenzen
D9: Beitragsbemessungsgrenzen | E9: Jahr | G9: Monat | N9: Beitragsbemessungsgrenzen | O9: =+P5 -> 2024 | Q9: 2025
E10: West | F10: Ost | G10: West | H10: Ost | O10: West | P10: Ost | Q10: West | R10: Ost
D11: Krankenversicherung | E11: =+IF($N$5=$P$5,$O11,$Q11) -> 66,150.00 | F11: =+IF($N$5=$P$5,$P11,$R11) -> 66,150.00 | G11: =IF(ISERROR(ROUND(E11/12,2)),"",ROUND(E11/12,2)) -> 5,512.50 | H11: =+ROUND(F11/12,2) -> 5,512.50 | N11: Krankenversicherung | O11: 62,100.00 | P11: 62,100.00 | Q11: 66,150.00 | R11: 66,150.00
D12: Pflegeversicherung | E12: 66,150.00 | F12: =+IF($N$5=$P$5,$P12,$R12) -> 66,150.00 | G12: =IF(ISERROR(ROUND(E12/12,2)),"",ROUND(E12/12,2)) -> 5,512.50 | H12: =+ROUND(F12/12,2) -> 5,512.50 | N12: Pflegeversicherung | O12: 62,100.00 | P12: 62,100.00 | Q12: 66,150.00 | R12: 66,150.00
D13: Rentenversicherung | E13: 96,600.00 | F13: 96,600.00 | G13: =IF(ISERROR(ROUND(E13/12,2)),"",ROUND(E13/12,2)) -> 8,050.00 | H13: =+ROUND(F13/12,2) -> 8,050.00 | N13: Rentenversicherung | O13: 90,600.00 | P13: 89,400.00 | Q13: 96,600.00 | R13: 96,600.00
D14: Arbeitslosenversicherung | E14: =+IF($N$5=$P$5,$O14,$Q14) -> 96,600.00 | F14: 96,600.00 | G14: =IF(ISERROR(ROUND(E14/12,2)),"",ROUND(E14/12,2)) -> 8,050.00 | H14: =+ROUND(F14/12,2) -> 8,050.00 | N14: Arbeitslosenversicherung | O14: 90,600.00 | P14: 89,400.00 | Q14: 96,600.00 | R14: 96,600.00
D15: Knappschaft | E15: =+IF($N$5=$P$5,$O15,$Q15) -> 118,800.00 | F15: 118,800.00 | G15: =IF(ISERROR(ROUND(E15/12,2)),"",ROUND(E15/12,2)) -> 9,900.00 | H15: =+ROUND(F15/12,2) -> 9,900.00 | N15: Knappschaft | O15: 111,600.00 | P15: 110,400.00 | Q15: 118,800.00 | R15: 118,800.00
D17: Beitragssätze
O18: 2024 | P18: 2025
D19: Pflegeversicherung | E19: =+IF($N$5=P5,$O19,$P19) -> 3.60% | N19: Pflegeversicherung | O19: 3.40% | P19: 3.60% | Q19: =0.5*P19 -> 1.8000%
D20: Zuschlag für Kinderlose | E20: =+IF($N$5=P5,$O20,$P20) -> 2.50% | N20: Zuschlag für Kinderlose | O20: 1.70% | P20: 2.50% | Q20: =0.5*P20 -> 1.2500%
D22: Arbeitslosenversicherung | E22: =+IF($N$5=P5,$O22,$P22) -> 2.60% | N22: Arbeitslosenversicherung | O22: 2.60% | P22: 2.60%
D23: Rentenversicherung | E23: =+IF($N$5=P5,$O23,$P23) -> 18.60% | N23: Rentenversicherung | O23: 18.60% | P23: 18.60%
D24: Knappschaft | E24: =+IF($N$5=P5,$O24,$P24) -> 24.70% | N24: Knappschaft | O24: 24.70% | P24: 24.70%
D26: Krankenversicherung | E26: =+IF($N$5=P5,$O26,$P26) -> 14.60% | N26: Krankenversicherung | O26: 14.60% | P26: 14.60% | Q26: =0.5*P26 -> 7.3000%
D27: Zusatzbeitrag | E27: =+IF($N$5=P5,$O27,$P27) -> 2.50% | N27: Zusatzbeitrag | O27: 1.60% | P27: 2.50% | Q27: =0.5*P27 -> 1.2500%
B32: © BWRmed!a, ein Unternehmensbereich der VNR Verlag für die Deutsche Wirtschaft AG - HRexperten24.de | N32: Insolvenzgeldumlage | O32: 0.06% | P32: 0.06%
B33: Die Vervielfältigung, Verbreitung oder Veräußerung der Daten oder Texte ist unzulässig und
B34: ausdrücklich nur mit Genehmigung des Verlags gestattet.

Sheet Parameter_Intern (hidden)
B4: Nr | C4: Tabellenblatt | D4: Hinweise | E4: Hyperlink
B5: 1 | C5: Eingaben | D5: Hier geben Sie die Daten für den Firmenwagenrechner ein | E5: #Eingaben!B3
B6: 2 | C6: Beispiel | D6: Hier finden Sie ein Beispiel für die Eingaben | E6: #Beispiel!B3
B7: 3 | C7: Berechnung | D7: Hier kommen Sie direkt zu den Berechnungsergebnissen | E7: #Berechnung!B3
B8: 4 | C8: Hilfe | D8: Hier finden Sie nähere Informationen über die Anwendung. | E8: #Hilfe!B3
B33: © BWRmed!a, ein Unternehmensbereich der VNR Verlag für die Deutsche Wirtschaft AG - HRexperten24.de
B34: Die Vervielfältigung, Verbreitung oder Veräußerung der Daten oder Texte ist unzulässig und
B35: ausdrücklich nur mit Genehmigung des Verlags gestattet.

Sheet __Goal_Metadata (hidden)
A1: _KAW999934 | B1: J
A2: _KAW999929 | B2: ae71bcf0-ef7f-449d-816a-e0e542cdad53
